Cogmind - Beta 14 @@@ ROGUE MODE // 2024.11.16 @ 20:32:39 Player: Shimmyarah Result: Destroyed by S-10 Pest with Light Assault Rifle Performance ------------- Evolutions (0) 0 Regions Visited (2) 400 Robots Destroyed (22) 110 Value Destroyed (454) 454 Prototype IDs (0) 0 Alien Tech Used (0) 0 Bonus (0) 0 TOTAL SCORE: 964 Bonus ------- None Cogmind --------- Core Integrity 0/250 Matter 300/300 Energy 100/100 System Corruption 0% Temperature Cool (0) Movement Rolling (110) Location -10/Subcaves Parts ------- > --- POWER (1) -------- (None) > --- PROPULSION (2) --- Subdweller Monowheel Subdweller Monowheel > --- UTILITY (2) ------ Medium Storage Unit > --- WEAPON (2) ------- Makeshift Laser > --- INVENTORY (10) --- Light Treads Light Treads Improved Heat Sink Makeshift Light Armor Plating Subdweller Beam Cannon Subdweller Beam Cannon Battle Rifle Subdweller Machine Gun Mining Laser Flamer Peak State ------------ > --- POWER ------------ (None) > --- PROPULSION ------- Subdweller Monowheel Subdweller Monowheel > --- UTILITY ---------- Medium Storage Unit Seismic Detector > --- WEAPON ----------- Makeshift Laser Subdweller Machine Gun > --- INVENTORY -------- Light Treads Light Treads Improved Heat Sink Makeshift Light Armor Plating Hacking Suite Subdweller Beam Cannon Battle Rifle Subdweller Machine Gun Mining Laser Flamer [Rating: 14] Favorites ----------- Power Light Ion Engine Engine Light Ion Engine Propulsion Wheel Treads Light Treads Leg Aluminum Leg Wheel Wheel Utility Medium Storage Unit Device Seismic Detector Storage Medium Storage Unit Weapon Makeshift Laser Energy Gun Makeshift Laser Energy Cannon Subdweller Beam Cannon Ballistic Gun Light Assault Rifle Ballistic Cannon Battle Cannon Special Weapon Mining Laser Special Melee Weapon Datajack Build | -11 -10 -10 ------- Run | Yrd Mat Sub Slots Evolved . | . . . Power . | . . . Propulsion . | . . . Utility . | . . . Weapon . | . . . Parts Attached 24 | 3 4 17 Power 1 | . . 1 Engine 1 | . . 1 Core . | . . . Reactor . | . . . Propulsion 9 | 2 2 5 Treads 3 | . 2 1 Leg . | . . . Wheel 6 | 2 . 4 Hover . | . . . Flight . | . . . Utility 4 | 1 2 1 Device 3 | 1 1 1 Storage 1 | . 1 . Processor . | . . . Hackware . | . . . Protection . | . . . Artifact . | . . . Weapon 10 | . . 10 Energy Gun 1 | . . 1 Energy Cannon 1 | . . 1 Ballistic Gun 1 | . . 1 Ballistic Cannon 2 | . . 2 Launcher . | . . . Special Weapon 3 | . . 3 Impact Weapon . | . . . Slashing Weapon . | . . . Piercing Weapon . | . . . Special Melee Weapon 2 | . . 2 Unidentified Prototypes . | . . . Parts Lost 8 | . 2 6 Power 2 | . 1 1 Propulsion 2 | . . 2 Utility 1 | . . 1 Weapon 3 | . 1 2 Highest Loss Streak 2 | . 2 2 To Critical Strikes . | . . . Average Slot Usage (%) 93 | . 99 91 Engine 9 | . 13 8 Treads 8 | . 23 3 Wheel 18 | . 4 23 Device 13 | . 14 13 Storage 14 | . 14 14 Energy Gun 12 | . 14 12 Ballistic Gun 8 | . 14 6 Special Weapon 4 | . . 5 Peak Build Rating 14 | 8 10 14 Average Rating 10 | 6 9 11 On Entrance 7 | 6 8 8 Naked Turns . | . . . Heaviest Build 24 | 11 16 24 Greatest Support 40 | 20 40 40 Greatest Overweight (x) 5 | . . 5 Average Overweight (x) . | . . . Largest Inventory Capacity 10 | 8 10 10 Average Capacity 9 | 8 9 10 Most Carried 10 | 8 10 10 Average Carried 9 | 6 9 9 Final Capacity 10 | 8 10 10 Final Carried 10 | 8 10 10 Class Distribution -------------------- 86% | Mutant 13% | Scavenger-Mutant Dominant Class ---------------- Mutant | -10/Materials Mutant | -10/Subcaves Resources | -11 -10 -10 ----------- Run | Yrd Mat Sub Matter Collected 617 | 349 63 205 Remotely . | . . . Salvage Created 638 | 259 216 163 Parts 49 | 21 14 14 Haulers Intercepted . | . . . Recyclers Shooed 2 | 1 1 . Parts Field Recycled . | . . . Retrieved Matter . | . . . Parts Self-Destructed 9 | . . 9 Prevented . | . . . Kills | -11 -10 -10 ------- Run | Yrd Mat Sub Combat Hostiles Destroyed 11 | . 5 6 Guns 9 | . 5 4 Cannons 2 | . . 2 Classes Destroyed 8 | 3 2 3 Worker 2 | 2 . . Tunneler 7 | 7 . . Recycler 1 | 1 . . Operator 1 | . 1 . Swarmer 2 | . . 2 Grunt 5 | . 5 . Sentry 1 | . . 1 Subdweller 3 | . . 3 Best Kill Streak 3 | 3 3 2 Combat Bots Only 3 | . 3 2 Max Kills in Single Turn 1 | 1 1 1 Gunslinging . | . . . Exploded . | . . . Melee . | . . . Uniques/NPCs Destroyed . | . . . Combat | -11 -10 -10 -------- Run | Yrd Mat Sub Hostile Shots Fired 102 | . 50 52 Missed 25 | . 10 15 Damage Taken 1078 | . 506 572 Core 251 | . 100 151 Absorbed by Shields . | . . . Core Remaining (%) 100 | 100 . . Volleys Fired 90 | 33 23 34 Largest 2 | 2 2 2 Hottest 130 | 60 60 130 Shots Fired 163 | 66 46 51 Gun 141 | 66 46 29 Cannon 11 | . . 11 Launcher . | . . . Special 11 | . . 11 Kinetic 71 | 33 23 15 Thermal 92 | 33 23 36 Explosive . | . . . Electromagnetic . | . . . Robot Hit Streak 10 | 10 8 7 Robot Miss Streak 3 | 3 3 1 Penetration Max . | . . . Secondary Targets 1 | . . 1 Max Gunslinging Chain 1 | . . 1 Shots Hit Robots 97 | 38 29 30 Core Hits 42 | 15 18 9 Critical Kills . | . . . Critical Parts Destroyed . | . . . Critical Strikes 2 | . . 2 Burn 2 | . . 2 Melee Attacks 2 | . . 2 Impact . | . . . Slashing . | . . . Piercing . | . . . Sneak Attacks 1 | . . 1 Combat Hostiles . | . . . Follow-up Attacks . | . . . Damage Inflicted 1185 | 388 271 526 Guns 972 | 388 270 314 Cannons 212 | . . 212 Explosions . | . . . Melee . | . . . Ramming 1 | . 1 . Kinetic 448 | 118 117 213 Thermal 736 | 270 153 313 Explosive . | . . . Electromagnetic . | . . . Impact . | . . . Slashing . | . . . Piercing . | . . . Highest Corruption . | . . . Average Corruption . | . . . Corruption Purged . | . . . Corruption Blocked . | . . . Overload Shots . | . . . Overflow Damage . | . . . Projectiles . | . . . Explosions . | . . . Melee . | . . . Knockbacks . | . . . Impact . | . . . Kinetic . | . . . Secondary . | . . . Self-Inflicted Damage . | . . . Shots . | . . . Rammed 1 | . 1 . Targets Rammed 1 | . 1 . Kicked . | . . . Crushed . | . . . Highest Temperature 135 | 60 135 18 Average Temperature 43 | 25 68 10 Received Heat Transfer 378 | . 279 99 Siege Activations . | . . . Robots Corrupted . | . . . Combat Hostiles . | . . . Parts Fried . | . . . Impact Corruptions . | . . . Robots Melted . | . . . Combat Hostiles . | . . . Parts Melted 2 | 1 . 1 Heat Transferred 1727 | 600 350 777 Parts Sabotaged . | . . . Parts Stolen . | . . . Parts Stripped . | . . . Power Chain Reactions . | . . . Alert | -11 -10 -10 ------- Run | Yrd Mat Sub Peak Influence 242 | 50 242 . Initial 32 | . 32 . Average 88 | 28 126 . Maximum Alert Level 1 | . 1 . Low Security (%) 84 | 100 74 . Level 1 15 | . 25 . Level 2 . | . . . Level 3 . | . . . Level 4 . | . . . Level 5 . | . . . High Security . | . . . Max Security . | . . . Squads Dispatched 2 | . 2 . Investigation 1 | . 1 . Extermination . | . . . Reinforcement 1 | . 1 . Assault . | . . . Garrison . | . . . Intercept . | . . . Searches Triggered . | . . . Construction Impeded . | . . . Haulers Reinforced . | . . . Active Scanning Responses . | . . . Cargo Convoy Interrupts . | . . . Stealth | -11 -10 -10 --------- Run | Yrd Mat Sub Distress Signals 1 | . 1 . Communications Jammed . | . . . Distress Signals . | . . . Times Spotted 21 | . 10 11 Peak Tracking Total 5 | . 5 3 Tactical Retreats 5 | . 2 3 Traps | -11 -10 -10 ------- Run | Yrd Mat Sub Traps Triggered . | . . . Indirectly . | . . . Trap Hack Attempts . | . . . Triggered . | . . . Disarmed . | . . . Reprogrammed . | . . . Reused . | . . . Traps Extracted . | . . . Installed . | . . . Triggered 1 | . . 1 Machines | -11 -10 -10 ---------- Run | Yrd Mat Sub Machines Disabled . | . . . Max in Single Turn . | . . . Machines Repaired . | . . . Machines Dismantled . | . . . Machines Sabotaged . | . . . Overloaded Fab Kills . | . . . Hacking | -11 -10 -10 --------- Run | Yrd Mat Sub Machines Accessed 3 | . 3 . Terminals 3 | . 3 . Fabricators . | . . . Repair Stations . | . . . Recycling Units . | . . . Scanalyzers . | . . . Garrison Access . | . . . Total Hacks 11 | . 11 . Successful 5 | . 5 . Failed 6 | . 6 . Catastrophic . | . . . Database Lockouts . | . . . Manual 11 | . 11 . Terminals 11 | . 11 . Fabricators . | . . . Repair Stations . | . . . Recycling Units . | . . . Scanalyzers . | . . . Garrison Access . | . . . Terminal Hacks . | . . . Fabricator Hacks . | . . . Repair Station Hacks . | . . . Recycling Unit Hacks . | . . . Scanalyzer . | . . . Garrison Access Hacks . | . . . Unauthorized Hacks 5 | . 5 . Terminals 5 | . 5 . Track 1 | . 1 . Botnet 1 | . 1 . Operators 1 | . 1 . Skim 2 | . 2 . Fabricators . | . . . Repair Stations . | . . . Recycling Units . | . . . Scanalyzers . | . . . Garrison Access . | . . . Data Cores Recovered 1 | . 1 . Used . | . . . Hacking Detections 3 | . 3 . Full Trace Events 1 | . 1 . Feedback Events . | . . . Feedback Blocked . | . . . Robot Schematics Acquired . | . . . Robots Built . | . . . Authchips . | . . . Time . | . . . Total Robot Build Rating . | . . . Part Schematics Acquired . | . . . Parts Built . | . . . Authchips . | . . . Time . | . . . Total Part Build Rating . | . . . Parts Repaired . | . . . Time . | . . . Parts Recycled . | . . . Recycled Matter . | . . . Retrieved Matter . | . . . Retrieved Components . | . . . Parts Scanalyzed . | . . . Part Schematics Acquired . | . . . Parts Damaged . | . . . Bothacking | -11 -10 -10 ------------ Run | Yrd Mat Sub Used RIF Installer . | . . . Robots Hacked 2 | . . 2 Non-combat 1 | . . 1 Combat 1 | . . 1 Robot Hacks Applied 2 | . . 2 parse_system 2 | . . 2 Relay Couplers Released . | . . . Fabnet Peak Effective % . | . . . Robots Rewired . | . . . Allies Hacked . | . . . Hacks Repelled . | . . . Allies | -11 -10 -10 -------- Run | Yrd Mat Sub Total Allies . | . . . Largest Group . | . . . Highest-Rated Group . | . . . Highest-Rated Ally . | . . . Total Orders . | . . . Ally Attacks . | . . . Total Damage . | . . . Kills . | . . . Allies Corrupted . | . . . Allies Melted . | . . . Intel | -11 -10 -10 ------- Run | Yrd Mat Sub Robot Analysis Total . | . . . Derelict Logs Recovered 1 | . . 1 Drone Launches . | . . . Drone Recoveries . | . . . Exploration | -11 -10 -10 ------------- Run | Yrd Mat Sub Turns Passed 1790 | 259 408 1123 Spaces Moved 1244 | 142 249 853 Core 3 | . . 3 Treads 248 | . 166 82 Legs 77 | 77 . . Wheels 916 | 65 83 768 Hover . | . . . Flight . | . . . Fastest Speed 80 | 80 80 80 Average Speed 105 | 101 133 98 Slowest Speed 300 | 120 160 300 Overloaded Moves . | . . . Propulsion Burnouts . | . . . Robots Hopped . | . . . Cave-ins Triggered . | . . . Exploration Rate (%) 25 | 5 22 50 Regions Visited 2 Branch Regions 1 Pre-discovered Areas 1 | . . 1 Known Exits Taken . | . . . Unknown Exits Taken 2 | 1 1 . Scrap Searched 1 | . . 1 Spaces Dug . | . . . Terrain Destroyed . | . . . Melee . | . . . Projectile . | . . . AOE . | . . . Terrain Rammed . | . . . Walls Destroyed . | . . . Machines Disabled . | . . . Actions | -11 -10 -10 --------- Run | Yrd Mat Sub Total 1544 | 198 283 1063 Wait 152 | 12 . 140 Move 1242 | 141 248 853 Hop . | . . . Pick Up 21 | 6 4 11 Fast Attach . | . . . Attach 8 | 3 . 5 Detach . | . . . Swap 16 | . 4 12 Drop 12 | 3 3 6 Fire 90 | 33 23 34 Melee 2 | . . 2 Ram . | . . . Kick . | . . . Crush 1 | . 1 . Escape Stasis . | . . . Rewire . | . . . Trap . | . . . Miscellaneous . | . . . Route ------- -11/Scrapyard -10/Materials (discovered 2 exits: [*Mat] / [*Sub]) -10/Subcaves (discovered 1 exit: [*Mat]) History --------- Turn | Location | Event 1 | -11/Scrapyard | Discovered new exit (range 3) 260 | -11/Scrapyard | Entered Materials 318 | -10/Materials | Build established: Mutant 353 | -10/Materials | Discovered new exit (range 10) 589 | -10/Materials | Discovered new exit (range 3) 668 | -10/Materials | Entered Subcaves 770 | -10/Subcaves | Shifting Twisted Machinery released Scrap Shield 783 | -10/Subcaves | Learned location of Zion (-6) 783 | -10/Subcaves | Met a Zionite searching for "candidates" 786 | -10/Subcaves | Shifting Twisted Machinery released Mak. Laser 885 | -10/Subcaves | Learned Materials emergency access door positions 983 | -10/Subcaves | A swath of the cavern ceiling suddenly collapsed 1002 | -10/Subcaves | Shifting Twisted Machinery released Scrap Shield 1002 | -10/Subcaves | Shifting Twisted Machinery released Flamer 1022 | -10/Subcaves | Shifting Twisted Machinery released Battle Rifle 1071 | -10/Subcaves | Discovered new exit (range 10) 1402 | -10/Subcaves | Core integrity fell below 50% 1507 | -10/Subcaves | Core integrity fell below 20% 1619 | -10/Subcaves | Curiously followed by a Cobbler waking with a query about "LVR3C" 1658 | -10/Subcaves | A swath of the cavern ceiling suddenly collapsed 1791 | -10/Subcaves | Destroyed by S-10 Pest with Light Assault Rifle Last Messages --------------- 01513_ Disposable Heat Sink melted. 01513_ 3C-O9U(R) destroyed. 01519_ Acquired Sub. Machine Gun. 01520_ Acquired 32 matter. 01526_ Acquired Sub. Monowheel. 01533_ Acquired 36 matter. 01604_ Acquired 3 matter. 01619_ AP-G21(O) wakes at your presence. 01619_ AP-G21(O): "LVR3C?" 01620_ AP-G21(O) collects matter. A swath of the cavern ceiling suddenly collapses. 01682_ AP-G21(O) collects matter. 01700_ AP-G21(O) puts together Mak. Light Armor Plating. 01703_ AP-G21(O) collects matter. 01761_ Dropped Hacking Suite. 01762_ Acquired Sub. Beam Cannon. 01781_ Seismic Detector destroyed. 01785_ Sub. Machine Gun destroyed. 01785_ S-10 Pest destroyed. Map ----- +----------------------------------------------------+ | ??????????????????????????????????#"#"# | | ??????????????????????????????????#### | | ?????????????????????????????# ????#"# | | ?????????????????????????????# ###""" | | ??????????????????????????????# #""""## | | ??????????????????????????????# #"#"#"# | | ??????????????????????????????# ##"""" ## | | ????????????????????????????# ####" ## | | ????????????????????????????# #####"# #### ## | | ???????????????????????????????###### ##??######? | | ???????????????????? ? ??????## " ######?????? | | ????????????????????# ????## #### #?????? | | ???????????????? % ?# &* ?#### !### #?????? | | ???????????????? %## &%!## ## ##????? | | ??????????????? &[# #????? | | ???????????????? [ ## #???? | | ?????????????????? =%s ?# ###### #???? | | ???????????????????## ?# ##????## #???? | | ???????????????????# ## ##??????## #???? | | ???????????????????# ##????????## #??? | | ???????????????????## ##??????????## #??? | | ????????????????????# #?????????????###??? | | ????????????????????#### #####??????????????? | | ?????????????????????### ##?????????????? | | ?????????????????????# #?????????????? | | ?????????????????????## @ #????????? | | ??????????????????????## ### #???????? | | ??????????????????????# ??# " ##???????? | | ?????????????????????# ??? " ###????????? | | ?????????????????????#### # ?? ##??????????? | | ????????????????????????### ?? ##???????????? | | ???????????????????????????"#?### #????????????? | | ????????????????????????????#???? #????????????? | | ?????????????????????????????????? #????????????? | | ?????????????????????????????????? #????????????? | | ??????????????????????????????????? #????????????? | | ?????????????????????????????????????????????????? | | ?????????????????????????????????????????????????? | | ?????????????????????????????????????????????????? | | ?????????????????????????????????????????????????? | | ?????????????????????????????????????????????????? | | ?????????????????????????????????????????????????? | | ?????????????????????????????????????????????????? | | ?????????????????????????????????????????????????? | | ?????????????????????????????????????????????????? | | ?????????????????????????????????????????????????? | | ?????????????????????????????????????????????????? | | ?????????????????????????????????????????????????? | | ?????????????????????????????????????????????????? | | ?????????????????????????????????????????????????? | +----------------------------------------------------+ Best States ------------- Heat Dissipation 25 Energy Generation 10 Energy Capacity 125 Matter Stores 300 Matter Capacity 300 Sight Range 16 Terrain Scan Range 16 Terrain Scan Density 10 Evasion (%) 55 Recoil Reduction 2 Item Schematics ----------------- None Robot Schematics ------------------ None Fabricated ------------ Nothing Alien Tech Used ----------------- None Achievements -------------- None Challenges ------------ None Game ------ Seed ChargeConcussiveImmobilizer Manual? 0 Play Time 00:15:53 Cumulative 48.9 hours Start 2024.11.16 @ 20:15:27 End 2024.11.16 @ 20:32:39 Sessions 1 Manual Loads 0 Difficulty Rogue Special Mode None Game No. 91 Rogue 91 Adventurer 0 Explorer 0 Win Type - Total 0 Types 0/0/0/0/0/0/0/0/0 Lore% 26 Gallery% 30 Achievement% 26 Wizard Run 0 Options --------- Layout 1 ASCII 0 Keyboard 0 Movement Arrows Keybinds 0 Fullscreen 1 Font 32/SmallcapsGlow Map View 55x47 Zoom Use 0% Tactical HUD 1 Map Filters NONE Filters NONE Steam 1 RUN: d8745526-0b7a-43da-9817-fe89236a4088